Workbook

Sheet Results of Evaluation
A1: K.S.SCHOOL OF ENGINEEERING AND MANAGEMENT,BENGALURU-109
A2: Provide Results of Evaluation of Each PO & PSO
A3: 2023-2024 CS & BS
A4: COURSE | B4: PO1 | C4: PO2 | D4: PO3 | E4: PO4 | F4: PO5 | G4: PO6 | H4: PO7 | I4: PO8 | J4: PO9 | K4: PO10 | L4: PO11 | M4: PO12 | N4: PSO1 | O4: PSO2
A5: BMATS101 | B5: 3 | C5: 2 | D5: _ | E5: 1 | F5: _ | G5: _ | H5: _ | I5: _ | J5: 1 | K5: 1 | L5: _ | M5: 1 | N5: 3 | O5: 2
A6: BCHES102 | B6: 3 | C6: 2.8 | D6: 3 | E6: 2.2 | F6: 3 | G6: 2.8 | H6: 2.6 | I6: _ | J6: _ | K6: _ | L6: _ | M6: 1.8 | N6: 3 | O6: 3
A7: BESCK104A | B7: =+IF(COUNTIF(B2:B6,">0"),(SUM(B2:B6)/COUNTIF(B2:B6,">0")),"_") -> 3 | C7: 2.4 | D7: 3 | E7: 1.6 | F7: 3 | G7: 2.8 | H7: 2.6 | I7: _ | J7: 1 | K7: 1 | L7: _ | M7: 1.4 | N7: 3 | O7: 2.5
A8: BPLCK105B | B8: 3 | C8: 3 | D8: 2 | E8: 1 | F8: 1 | G8: _ | H8: _ | I8: _ | J8: _ | K8: _ | L8: _ | M8: 1 | N8: 3 | O8: 2
A9: BMATS201 | B9: 3 | C9: 2 | D9: _ | E9: 1 | F9: _ | G9: _ | H9: _ | I9: _ | J9: 1 | K9: 1 | L9: _ | M9: 1 | N9: 3 | O9: 2
A10: BPHYS202 | B10: 3 | C10: 3 | D10: 3 | E10: 2.6 | F10: 2.333333333 | G10: 2.6 | H10: 3 | I10: _ | J10: _ | K10: _ | L10: _ | M10: 3 | N10: 3 | O10: 3
A11: BPOPS203 | B11: 3 | C11: 3 | D11: _ | E11: 2.333333333 | F11: _ | G11: 3 | H11: 3 | I11: _ | J11: _ | K11: _ | L11: _ | M11: 2.6 | N11: 2.6 | O11: 2.4
A12: BESCK204D | B12: 2.6 | C12: 2 | D12: 3 | E12: 1.6 | F12: 3 | G12: 1 | H12: _ | I12: _ | J12: _ | K12: _ | L12: _ | M12: 1.2 | N12: 2 | O12: 2
A13: BETCK205H | B13: 2.6 | C13: 2 | D13: 3 | E13: 1.6 | F13: 3 | G13: 1 | H13: _ | I13: _ | J13: _ | K13: _ | L13: _ | M13: 1.2 | N13: 2 | O13: 2
A14: BCS301 | B14: 3 | C14: 2 | D14: 0 | E14: 1 | F14: _ | G14: _ | H14: _ | I14: _ | J14: 1 | K14: 1 | L14: _ | M14: 1 | N14: 3 | O14: 2
A15: BCS302 | B15: 2.4 | C15: 2.6 | D15: 1.6 | E15: _ | F15: 4 | G15: _ | H15: _ | I15: 1.6 | J15: 3 | K15: _ | L15: _ | M15: 1 | N15: 2 | O15: 2
A16: BCS303 | B16: 3 | C16: 2.4 | D16: 2.4 | E16: 2 | F16: _ | G16: 2 | H16: _ | I16: _ | J16: _ | K16: _ | L16: _ | M16: 2 | N16: 3 | O16: 2
A17: BCS304 | B17: 2.8 | C17: 2.8 | D17: 2.75 | E17: 1.25 | F17: _ | G17: _ | H17: _ | I17: _ | J17: _ | K17: _ | L17: _ | M17: 1.4 | N17: 3 | O17: 1
A18: BCS306A | B18: =+IF(COUNTIF(B13:B17,">0"),(SUM(B13:B17)/COUNTIF(B13:B17,">0")),"_") -> 2.76 | C18: 2.36 | D18: 2.4375 | E18: 1.4625 | F18: 3.5 | G18: 1.5 | H18: _ | I18: 1.6 | J18: 2 | K18: 1 | L18: _ | M18: 1.32 | N18: 2.6 | O18: 1.8
A19: BCS401 | B19: 3 | C19: 2.6 | D19: 2 | E19: _ | F19: 2.2 | G19: _ | H19: _ | I19: _ | J19: 1 | K19: _ | L19: _ | M19: 2.4 | N19: 3 | O19: 2
A20: BCS402 | B20: 3 | C20: 2.6 | D20: 2 | E20: _ | F20: 2.2 | G20: _ | H20: _ | I20: _ | J20: 1 | K20: _ | L20: _ | M20: 2.4 | N20: 3 | O20: 2
A21: BCS403 | B21: 3 | C21: 1.6 | D21: 1.6 | E21: _ | F21: 1 | G21: _ | H21: 1 | I21: _ | J21: _ | K21: _ | L21: _ | M21: 1 | N21: 2.8 | O21: 1
A22: BCS405A | B22: 3 | C22: 3 | D22: _ | E22: 3 | F22: _ | G22: 1 | H22: _ | I22: _ | J22: _ | K22: _ | L22: _ | M22: 1 | N22: 2 | O22: 1
A23: Average | B23: =AVERAGE(B5:B22) -> 2.897777778 | C23: =AVERAGE(C5:C22) -> 2.453333333 | D23: =AVERAGE(D5:D22) -> 2.270535714 | E23: =AVERAGE(E5:E22) -> 1.688988095 | F23: =AVERAGE(F5:F22) -> 2.566666667 | G23: =AVERAGE(G5:G22) -> 1.966666667 | H23: 2.44 | I23: 1.6 | J23: 1.375 | K23: 1 | L23: _ | M23: 1.54 | N23: 2.722222222 | O23: 1.983333333
A24: Direct Attainment [A] | B24: =+IF(COUNTIF(B5:B22,">0"),(SUM(B5:B22)/COUNTIF(B5:B22,">0")),"_") -> 2.897777778 | C24: 2.453333333 | D24: 2.445192308 | E24: 1.688988095 | F24: 2.566666667 | G24: 1.966666667 | H24: 2.44 | I24: 1.6 | J24: 1.375 | K24: 1 | L24: _ | M24: 1.54 | N24: 2.722222222 | O24: 1.983333333
A25: Program Exit Suvery | B25: 3 | C25: 3 | D25: 3 | E25: 3 | F25: 3 | G25: 3 | H25: 3 | I25: 3 | J25: 3 | K25: 3 | L25: 3 | M25: 3 | N25: 3 | O25: 3
A26: Employer Suvery | B26: 3 | C26: 3 | D26: 3 | E26: 3 | F26: 3 | G26: 3 | H26: 3 | I26: 3 | J26: 3 | K26: 3 | L26: 3 | M26: 3 | N26: 3 | O26: 3
A27: Alumini Suvery | B27: 3 | C27: 3 | D27: 3 | E27: 3 | F27: 3 | G27: 3 | H27: 3 | I27: 3 | J27: 3 | K27: 3 | L27: 3 | M27: 3 | N27: 3 | O27: 3
A28: Indirect Attainment [B] | B28: 3 | C28: 3 | D28: 3 | E28: 3 | F28: 3 | G28: 3 | H28: 3 | I28: 3 | J28: 3 | K28: 3 | L28: 3 | M28: 3 | N28: 3 | O28: 3
A29: C=A*0.8 | B29: =B24*0.8 -> 2.318222222 | C29: 1.962666667 | D29: 1.956153846 | E29: 1.351190476 | F29: 2.053333333 | G29: 1.573333333 | H29: 1.952 | I29: 1.28 | J29: 1.1 | K29: 0.8 | L29: 0 | M29: 1.232 | N29: 2.177777778 | O29: 1.586666667
A30: D=B*0.2 | B30: =B28*0.2 -> 0.6 | C30: 0.6 | D30: 0.6 | E30: 0.6 | F30: 0.6 | G30: 0.6 | H30: 0.6 | I30: 0.6 | J30: 0.6 | K30: 0.6 | L30: 0.6 | M30: 0.6 | N30: 0.6 | O30: 0.6
A31: Total attainment [C+D] | B31: =B29+B30 -> 2.918222222 | C31: 2.562666667 | D31: 2.556153846 | E31: 1.951190476 | F31: 2.653333333 | G31: 2.173333333 | H31: 2.552 | I31: 1.88 | J31: 1.7 | K31: 1.4 | L31: 0.6 | M31: 1.832 | N31: 2.777777778 | O31: 2.186666667
A32: % | B32: =(B31/3)*100 -> 97.27407407 | C32: 85.42222222 | D32: 85.20512821 | E32: 65.03968254 | F32: 88.44444444 | G32: 72.44444444 | H32: 85.06666667 | I32: 62.66666667 | J32: 56.66666667 | K32: 46.66666667 | L32: 20 | M32: 61.06666667 | N32: 92.59259259 | O32: 72.88888889
